[Event "Early-Titled-Tuesday-Blitz-April-16-2024"]
[Site "Chess.com"]
[Date "2024.04.16"]
[Round "6"]
[White "Abund"]
[Black "Kazmin_Semyon"]
[Result "1-0"]
[WhiteElo "2810"]
[BlackElo "2585"]
[TimeControl "180+1"]
[EndTime "9:13:34 PDT"]
[Termination "Abund won by resignation"]

1. Nf3 {[%clk 0:03:00.9]} 1... g6 {[%clk 0:02:56]} 2. e4 {[%clk 0:02:59.7]} 2...
Bg7 {[%clk 0:02:56.3]} 3. d4 {[%clk 0:03:00.1]} 3... c6 {[%clk 0:02:56.8]} 4. h3
{[%clk 0:02:59]} 4... d5 {[%clk 0:02:57.2]} 5. e5 {[%clk 0:02:55.3]} 5... h5
{[%clk 0:02:57.9]} 6. Bd3 {[%clk 0:02:53]} 6... Nh6 {[%clk 0:02:57.2]} 7. O-O
{[%clk 0:02:51.2]} 7... Bf5 {[%clk 0:02:57.5]} 8. Re1 {[%clk 0:02:46.1]} 8...
Bxd3 {[%clk 0:02:56.6]} 9. Qxd3 {[%clk 0:02:46.4]} 9... Nf5 {[%clk 0:02:57.2]}
10. e6 {[%clk 0:02:44.9]} 10... f6 {[%clk 0:02:49.4]} 11. g4 {[%clk 0:02:37.7]}
11... hxg4 {[%clk 0:02:44.6]} 12. hxg4 {[%clk 0:02:37.7]} 12... Na6 {[%clk
0:02:44.9]} 13. gxf5 {[%clk 0:02:34.1]} 13... Qd6 {[%clk 0:02:36]} 14. fxg6
{[%clk 0:02:26.5]} 14... O-O-O {[%clk 0:02:34.5]} 15. Qf5 {[%clk 0:02:20.8]}
15... Rdg8 {[%clk 0:02:23.8]} 16. Bf4 {[%clk 0:02:17.3]} 16... Qb4 {[%clk
0:02:24.1]} 17. Nbd2 {[%clk 0:02:03.6]} 17... Bh6 {[%clk 0:02:23]} 18. Nf1
{[%clk 0:01:42.8]} 18... Bxf4 {[%clk 0:02:15.5]} 19. Qxf4 {[%clk 0:01:43.7]}
19... Rxg6+ {[%clk 0:02:15.9]} 20. Ng3 {[%clk 0:01:43.8]} 20... Qxb2 {[%clk
0:02:09.4]} 21. Qf5 {[%clk 0:01:35.7]} 21... Rhg8 {[%clk 0:02:08.3]} 22. Kg2
{[%clk 0:01:25.7]} 22... Nb4 {[%clk 0:01:54.1]} 23. Rab1 {[%clk 0:01:14.5]}
23... Qc3 {[%clk 0:01:47.2]} 24. Re3 {[%clk 0:01:07.3]} 24... Qc4 {[%clk
0:01:46.8]} 25. c3 {[%clk 0:00:58.6]} 25... Qxa2 {[%clk 0:01:30.1]} 26. Nd2
{[%clk 0:00:25.6]} 26... Nc2 {[%clk 0:00:51]} 27. Rf3 {[%clk 0:00:17.6]} 27...
Na3 {[%clk 0:00:47.2]} 28. Rd1 {[%clk 0:00:15.9]} 28... Nb5 {[%clk 0:00:44.9]}
29. Qd3 {[%clk 0:00:15.8]} 29... Nd6 {[%clk 0:00:45.1]} 30. Kf1 {[%clk
0:00:15.7]} 30... Qa4 {[%clk 0:00:33]} 31. Rb1 {[%clk 0:00:15.1]} 31... Rh6
{[%clk 0:00:20.6]} 32. Rf4 {[%clk 0:00:14.6]} 32... Rh2 {[%clk 0:00:19.1]} 33.
Nf3 {[%clk 0:00:14.3]} 33... Rh3 {[%clk 0:00:15.6]} 34. Kg2 {[%clk 0:00:11.5]}
34... Rh6 {[%clk 0:00:08.4]} 35. Rh1 {[%clk 0:00:09.7]} 35... Rhg6 {[%clk
0:00:08.5]} 36. Rfh4 {[%clk 0:00:08.8]} 36... Qa2 {[%clk 0:00:08.7]} 37. R1h3
{[%clk 0:00:06.8]} 37... Ne4 {[%clk 0:00:08.9]} 38. Rxe4 {[%clk 0:00:04.7]}
38... dxe4 {[%clk 0:00:07.9]} 39. Qxe4 {[%clk 0:00:05.6]} 39... Qd5 {[%clk
0:00:07.6]} 40. Qxd5 {[%clk 0:00:04.4]} 40... cxd5 {[%clk 0:00:08.5]} 41. Rh7
{[%clk 0:00:03.7]} 41... f5 {[%clk 0:00:07.2]} 42. Nh4 {[%clk 0:00:03]} 42...
Rf6 {[%clk 0:00:05.3]} 43. Kf3 {[%clk 0:00:02.3]} 43... Rxe6 {[%clk 0:00:02.6]}
44. Nhxf5 {[%clk 0:00:02.8]} 44... Rf8 {[%clk 0:00:03.4]} 45. Kg4 {[%clk
0:00:03]} 45... Rg6+ {[%clk 0:00:03.6]} 46. Kh5 {[%clk 0:00:03.3]} 46... Re6
{[%clk 0:00:03.6]} 47. Nxe7+ {[%clk 0:00:03.5]} 47... Kb8 {[%clk 0:00:03.1]} 48.
Nxd5 {[%clk 0:00:04.1]} 48... a5 {[%clk 0:00:02.6]} 49. Kg4 {[%clk 0:00:04.3]}
49... a4 {[%clk 0:00:02.9]} 50. Nf4 {[%clk 0:00:04.9]} 50... Rc6 {[%clk
0:00:02.2]} 51. Nd5 {[%clk 0:00:04.7]} 51... a3 {[%clk 0:00:01.9]} 52. Rh1
{[%clk 0:00:05.5]} 52... Ra6 {[%clk 0:00:02]} 53. Ra1 {[%clk 0:00:05.7]} 53...
Rd8 {[%clk 0:00:02.3]} 54. Nb4 {[%clk 0:00:05.8]} 54... Ra4 {[%clk 0:00:03]} 55.
Ne4 {[%clk 0:00:06.1]} 55... Rg8+ {[%clk 0:00:02.4]} 56. Kf5 {[%clk 0:00:06.2]}
56... Ra5+ {[%clk 0:00:02.2]} 57. Kf4 {[%clk 0:00:06.4]} 57... Rf8+ {[%clk
0:00:02.5]} 58. Ke3 {[%clk 0:00:07]} 58... Raf5 {[%clk 0:00:02.9]} 59. Ke2
{[%clk 0:00:06]} 59... Re8 {[%clk 0:00:02.6]} 60. Kd3 {[%clk 0:00:05.3]} 60...
Rf3+ {[%clk 0:00:02.6]} 61. Ke2 {[%clk 0:00:05.9]} 61... Rxc3 {[%clk 0:00:03.1]}
62. Kd2 {[%clk 0:00:05.6]} 62... Rc4 {[%clk 0:00:02.8]} 63. Nd6 {[%clk
0:00:06.1]} 63... Rxd4+ {[%clk 0:00:02.6]} 64. Kc3 {[%clk 0:00:06.9]} 64... Rxd6
{[%clk 0:00:03]} 65. Rxa3 {[%clk 0:00:07.7]} 65... Rf8 {[%clk 0:00:03.2]} 66.
Nd3 {[%clk 0:00:07.1]} 66... Rf3 {[%clk 0:00:02.8]} 67. Kc2 {[%clk 0:00:07.7]}
67... Rc6+ {[%clk 0:00:01.6]} 68. Kd2 {[%clk 0:00:07.8]} 68... Rd6 {[%clk
0:00:02.5]} 69. Ke2 {[%clk 0:00:08.4]} 69... Rf8 {[%clk 0:00:03.4]} 70. Rb3
{[%clk 0:00:08.5]} 70... Re8+ {[%clk 0:00:04.1]} 71. Kd2 {[%clk 0:00:08.9]}
71... Red8 {[%clk 0:00:04.4]} 72. Ke3 {[%clk 0:00:09.3]} 72... Kc7 {[%clk
0:00:05.1]} 73. f4 {[%clk 0:00:09.8]} 73... Re8+ {[%clk 0:00:05.7]} 74. Ne5
{[%clk 0:00:10.2]} 74... Rh6 {[%clk 0:00:06.3]} 75. Kd4 {[%clk 0:00:10.3]} 75...
Rh1 {[%clk 0:00:06.2]} 76. Ke4 {[%clk 0:00:10.3]} 76... Re1+ {[%clk 0:00:05.9]}
77. Kf3 {[%clk 0:00:09.5]} 77... Rf8 {[%clk 0:00:06.6]} 78. Nd3 {[%clk
0:00:09.5]} 78... Rf1+ {[%clk 0:00:06.7]} 79. Ke4 {[%clk 0:00:10]} 79... Rh1
{[%clk 0:00:06.5]} 80. Rc3+ {[%clk 0:00:10.1]} 80... Kd6 {[%clk 0:00:07]} 81.
Rb3 {[%clk 0:00:10.3]} 81... Rh7 {[%clk 0:00:07.3]} 82. Rb6+ {[%clk 0:00:10.2]}
82... Kc7 {[%clk 0:00:07.4]} 83. Rb1 {[%clk 0:00:10.8]} 83... Rhf7 {[%clk
0:00:07.7]} 84. Rb3 {[%clk 0:00:10.8]} 84... Kb8 {[%clk 0:00:06.5]} 85. Kd5
{[%clk 0:00:11.1]} 85... Rd8+ {[%clk 0:00:05]} 86. Ke6 {[%clk 0:00:11.1]} 86...
Rff8 {[%clk 0:00:05]} 87. Ke5 {[%clk 0:00:10]} 87... Rfe8+ {[%clk 0:00:04.2]}
88. Kf5 {[%clk 0:00:10.6]} 88... Rd5+ {[%clk 0:00:04.2]} 89. Ne5 {[%clk
0:00:10.5]} 89... Kc7 {[%clk 0:00:04.6]} 90. Ke4 {[%clk 0:00:10.4]} 90... Rd1
{[%clk 0:00:04.2]} 91. Rf3 {[%clk 0:00:06.9]} 91... b5 {[%clk 0:00:03.8]} 92.
Rc3+ {[%clk 0:00:03.9]} 92... Kb6 {[%clk 0:00:03.8]} 93. Rb3 {[%clk 0:00:03.9]}
93... Ka5 {[%clk 0:00:04.1]} 94. Kf5 {[%clk 0:00:04.1]} 94... Ka4 {[%clk
0:00:04.3]} 95. Rb2 {[%clk 0:00:04.2]} 95... b4 {[%clk 0:00:04.5]} 96. Ra2+
{[%clk 0:00:04.2]} 96... Kb3 {[%clk 0:00:04.7]} 97. Ra7 {[%clk 0:00:04.6]} 97...
Rc8 {[%clk 0:00:03]} 98. Rb7 {[%clk 0:00:04.7]} 98... Kc3 {[%clk 0:00:03.1]} 99.
Ng4 {[%clk 0:00:03.4]} 99... b3 {[%clk 0:00:03.2]} 100. Ne3 {[%clk 0:00:04]}
100... Rd3 {[%clk 0:00:03.3]} 101. Ng4 {[%clk 0:00:03.4]} 101... b2 {[%clk
0:00:03.6]} 102. Nf2 {[%clk 0:00:04.1]} 102... Rd5+ {[%clk 0:00:02.8]} 103. Ke6
{[%clk 0:00:03.8]} 103... Rd4 {[%clk 0:00:02.4]} 104. Ke5 {[%clk 0:00:03.6]}
104... Rc5+ {[%clk 0:00:02.4]} 105. Ke6 {[%clk 0:00:03]} 105... Kc2 {[%clk
0:00:03.2]} 106. f5 {[%clk 0:00:02.8]} 106... b1=Q {[%clk 0:00:03.2]} 107. Rxb1
{[%clk 0:00:03.4]} 107... Kxb1 {[%clk 0:00:04.1]} 108. f6 {[%clk 0:00:03.6]}
108... Rc6+ {[%clk 0:00:04.4]} 109. Ke5 {[%clk 0:00:04.1]} 109... Rd8 {[%clk
0:00:04.8]} 110. Ng4 {[%clk 0:00:03.9]} 110... Ra8 {[%clk 0:00:02.5]} 111. Kf5
{[%clk 0:00:03.2]} 111... Ra5+ {[%clk 0:00:02.5]} 112. Kg6 {[%clk 0:00:03.5]}
112... Raa6 {[%clk 0:00:02.9]} 113. Kg7 {[%clk 0:00:03.5]} 113... Rc7+ {[%clk
0:00:03.6]} 114. f7 {[%clk 0:00:03.2]} 114... Ra5 {[%clk 0:00:04.1]} 115. Nh6
{[%clk 0:00:03.2]} 115... Rg5+ {[%clk 0:00:04.3]} 116. Kf6 {[%clk 0:00:02.9]}
116... Rg1 {[%clk 0:00:03.9]} 117. f8=Q {[%clk 0:00:03.3]} 117... Rf1+ {[%clk
0:00:02.3]} 118. Nf5 {[%clk 0:00:04]} 118... Rxf5+ {[%clk 0:00:01.8]} 119. Kxf5
{[%clk 0:00:04]} 119... Rc2 {[%clk 0:00:02.7]} 120. Ke4 {[%clk 0:00:04.4]}
120... Rb2 {[%clk 0:00:01.4]} 121. Kd3 {[%clk 0:00:04.5]} 121... Rb3+ {[%clk
0:00:02]} 122. Kd2 {[%clk 0:00:05.1]} 122... Rb2+ {[%clk 0:00:02]} 123. Kc3
{[%clk 0:00:05.3]} 123... Rc2+ {[%clk 0:00:02.7]} 124. Kd3 {[%clk 0:00:03.7]}
124... Rb2 {[%clk 0:00:03.4]} 125. Qf1+ {[%clk 0:00:03.5]} 125... Ka2 {[%clk
0:00:03.9]} 126. Qd1 {[%clk 0:00:04.3]} 126... Rb3+ {[%clk 0:00:02.7]} 127. Kc4
{[%clk 0:00:04]} 127... Rb2 {[%clk 0:00:01.9]} 128. Kc3 {[%clk 0:00:04.3]}
128... Rb8 {[%clk 0:00:02.1]} 129. Qa4+ {[%clk 0:00:04.4]} 129... Kb1 {[%clk
0:00:02.5]} 130. Qe4+ {[%clk 0:00:04.6]} 130... Ka2 {[%clk 0:00:03.1]} 131. Qg2+
{[%clk 0:00:04.3]} 131... Ka3 {[%clk 0:00:02.7]} 132. Qg1 {[%clk 0:00:03]}
132... Rc8+ {[%clk 0:00:03.2]} 133. Kd4 {[%clk 0:00:03.3]} 133... Rd8+ {[%clk
0:00:03.9]} 134. Kc5 {[%clk 0:00:03.9]} 134... Rc8+ {[%clk 0:00:04.7]} 135. Kb5
{[%clk 0:00:04.3]} 135... Rb8+ {[%clk 0:00:05.3]} 136. Kc6 {[%clk 0:00:04.8]}
136... Rc8+ {[%clk 0:00:06.1]} 137. Kb7 {[%clk 0:00:05.4]} 137... Rc3 {[%clk
0:00:06.2]} 138. Qa1+ {[%clk 0:00:05.7]} 138... Kb3 {[%clk 0:00:06.6]} 139. Kb6
{[%clk 0:00:06]} 139... Kc2 {[%clk 0:00:07.1]} 140. Qa2+ {[%clk 0:00:05.1]}
140... Kd3 {[%clk 0:00:06.6]} 141. Kb5 {[%clk 0:00:04.8]} 141... Rc2 {[%clk
0:00:06.9]} 142. Qb1 {[%clk 0:00:04.8]} 142... Kc3 {[%clk 0:00:05.8]} 143. Qb4+
{[%clk 0:00:05.3]} 143... Kd3 {[%clk 0:00:06]} 144. Qb1 {[%clk 0:00:05.6]}
144... Kc3 {[%clk 0:00:06.3]} 145. Ka4 {[%clk 0:00:06]} 145... Rb2 {[%clk
0:00:05.8]} 146. Qa1 {[%clk 0:00:06]} 146... Kc2 {[%clk 0:00:06.2]} 147. Qf1
{[%clk 0:00:05.1]} 147... Ra2+ {[%clk 0:00:03.5]} 148. Kb4 {[%clk 0:00:05]}
148... Rb2+ {[%clk 0:00:03.2]} 149. Kc4 {[%clk 0:00:05.6]} 149... Ra2 {[%clk
0:00:02.5]} 150. Qe2+ {[%clk 0:00:04.4]} 150... Kb1 {[%clk 0:00:03]} 151. Qd1+
{[%clk 0:00:04.7]} 151... Kb2 {[%clk 0:00:03.6]} 152. Qb3+ {[%clk 0:00:05]}
152... Ka1 {[%clk 0:00:03.6]} 153. Qh3 {[%clk 0:00:04.1]} 153... Kb2 {[%clk
0:00:02.4]} 154. Kb4 {[%clk 0:00:04.1]} 154... Kb1 {[%clk 0:00:02]} 155. Qd3+
{[%clk 0:00:04.2]} 155... Ka1 {[%clk 0:00:02]} 156. Qd1+ {[%clk 0:00:03.4]}
156... Kb2 {[%clk 0:00:02.3]} 157. Qh1 {[%clk 0:00:04.1]} 157... Kc2 {[%clk
0:00:02]} 158. Qh7+ {[%clk 0:00:04.1]} 158... Kb2 {[%clk 0:00:02.5]} 159. Qg7+
{[%clk 0:00:04.7]} 159... Kb1 {[%clk 0:00:03]} 160. Kb3 {[%clk 0:00:05.4]}
160... Ra3+ {[%clk 0:00:01.3]} 161. Kxa3 {[%clk 0:00:05.4]} 1-0

[Event "Early-Titled-Tuesday-Blitz-April-16-2024"]
[Site "Chess.com"]
[Date "2024.04.16"]
[Round "7"]
[White "nikitakhoroshev"]
[Black "klercaku"]
[Result "0-1"]
[WhiteElo "2524"]
[BlackElo "2214"]
[TimeControl "180+1"]
[EndTime "9:16:34 PDT"]
[Termination "klercaku won by resignation"]

1. e4 {[%clk 0:03:00.9]} 1... e5 {[%clk 0:02:57.9]} 2. Nf3 {[%clk 0:03:00.2]}
2... Nc6 {[%clk 0:02:58.1]} 3. Bc4 {[%clk 0:02:57.5]} 3... Bc5 {[%clk
0:02:56.5]} 4. c3 {[%clk 0:02:53.2]} 4... Nf6 {[%clk 0:02:56]} 5. d4 {[%clk
0:02:53]} 5... exd4 {[%clk 0:02:53.7]} 6. cxd4 {[%clk 0:02:53.9]} 6... Bb4+
{[%clk 0:02:53.6]} 7. Nc3 {[%clk 0:02:54.1]} 7... Nxe4 {[%clk 0:02:49.2]} 8. O-O
{[%clk 0:02:54.2]} 8... Bxc3 {[%clk 0:02:48.7]} 9. d5 {[%clk 0:02:54.4]} 9...
Bf6 {[%clk 0:02:48]} 10. Re1 {[%clk 0:02:54.9]} 10... Ne7 {[%clk 0:02:47.5]} 11.
Rxe4 {[%clk 0:02:54.8]} 11... d6 {[%clk 0:02:45.9]} 12. Bg5 {[%clk 0:02:52]}
12... Bxg5 {[%clk 0:02:41.5]} 13. Nxg5 {[%clk 0:02:50.9]} 13... O-O {[%clk
0:02:38.7]} 14. Qh5 {[%clk 0:02:49]} 14... Bf5 {[%clk 0:02:32.8]} 15. Re3 {[%clk
0:02:41.8]} 15... Bg6 {[%clk 0:02:31.8]} 16. Qh4 {[%clk 0:02:41.3]} 16... Nf5
{[%clk 0:02:31.2]} 17. Qf4 {[%clk 0:02:36.6]} 17... Nxe3 {[%clk 0:02:29.8]} 18.
fxe3 {[%clk 0:02:37.1]} 18... Qe7 {[%clk 0:02:23]} 19. Rf1 {[%clk 0:02:24.7]}
19... Rae8 {[%clk 0:02:22.1]} 20. Rf3 {[%clk 0:02:24.8]} 20... Qe5 {[%clk
0:02:16.9]} 21. Qh4 {[%clk 0:02:24]} 21... Qxb2 {[%clk 0:02:07.7]} 0-1

[Event "Early-Titled-Tuesday-Blitz-April-16-2024"]
[Site "Chess.com"]
[Date "2024.04.16"]
[Round "7"]
[White "SoCalJuniorChess"]
[Black "Laico"]
[Result "0-1"]
[WhiteElo "2187"]
[BlackElo "2411"]
[TimeControl "180+1"]
[EndTime "9:17:01 PDT"]
[Termination "Laico won by resignation"]

1. d4 {[%clk 0:03:00.9]} 1... e6 {[%clk 0:02:58.5]} 2. Nc3 {[%clk 0:03:01.5]}
2... Bb4 {[%clk 0:02:51.9]} 3. Qd3 {[%clk 0:02:59.1]} 3... f5 {[%clk 0:02:50.5]}
4. a3 {[%clk 0:02:53]} 4... Bxc3+ {[%clk 0:02:42.8]} 5. Qxc3 {[%clk 0:02:53.9]}
5... Nf6 {[%clk 0:02:42.9]} 6. f3 {[%clk 0:02:49.3]} 6... O-O {[%clk 0:02:42.4]}
7. Bg5 {[%clk 0:02:42.7]} 7... b6 {[%clk 0:02:37.4]} 8. O-O-O {[%clk 0:02:30]}
8... Bb7 {[%clk 0:02:36.2]} 9. Nh3 {[%clk 0:02:23.6]} 9... d6 {[%clk 0:02:34.3]}
10. Nf2 {[%clk 0:02:23.3]} 10... Nbd7 {[%clk 0:02:34]} 11. Qd3 {[%clk
0:02:13.5]} 11... Qe8 {[%clk 0:02:30.7]} 12. e4 {[%clk 0:02:11.5]} 12... fxe4
{[%clk 0:02:19.2]} 13. fxe4 {[%clk 0:02:10.4]} 13... e5 {[%clk 0:02:14.4]} 14.
d5 {[%clk 0:02:07.3]} 14... Qg6 {[%clk 0:02:10.1]} 15. h4 {[%clk 0:02:06.5]}
15... Nc5 {[%clk 0:02:07.7]} 16. Qe3 {[%clk 0:01:53.2]} 16... Nfxe4 {[%clk
0:02:07.9]} 17. Bd3 {[%clk 0:01:53]} 17... Rxf2 {[%clk 0:02:06.1]} 18. h5 {[%clk
0:01:36.8]} 18... Qxg5 {[%clk 0:02:06]} 0-1

[Event "Early-Titled-Tuesday-Blitz-April-16-2024"]
[Site "Chess.com"]
[Date "2024.04.16"]
[Round "7"]
[White "IPAchess"]
[Black "Likvidator228"]
[Result "1-0"]
[WhiteElo "2389"]
[BlackElo "2541"]
[TimeControl "180+1"]
[EndTime "9:17:08 PDT"]
[Termination "IPAchess won by resignation"]

1. d4 {[%clk 0:03:00.9]} 1... f5 {[%clk 0:02:59.8]} 2. Bf4 {[%clk 0:02:59.8]}
2... Nf6 {[%clk 0:03:00]} 3. e3 {[%clk 0:02:59.7]} 3... g6 {[%clk 0:03:00.5]} 4.
h4 {[%clk 0:02:44.4]} 4... h6 {[%clk 0:02:56.6]} 5. Qf3 {[%clk 0:02:43.5]} 5...
d6 {[%clk 0:02:52.7]} 6. Nc3 {[%clk 0:02:39.7]} 6... Nc6 {[%clk 0:02:49.1]} 7.
Qg3 {[%clk 0:02:22.2]} 7... Rg8 {[%clk 0:02:48.9]} 8. Be2 {[%clk 0:02:22]} 8...
e6 {[%clk 0:02:45.3]} 9. O-O-O {[%clk 0:02:21.1]} 9... Bd7 {[%clk 0:02:42.7]}
10. Nf3 {[%clk 0:02:09.4]} 10... Qe7 {[%clk 0:02:37.8]} 11. d5 {[%clk
0:02:05.4]} 11... exd5 {[%clk 0:02:27.3]} 12. Nxd5 {[%clk 0:02:05.7]} 12... Nxd5
{[%clk 0:02:27.8]} 13. Rxd5 {[%clk 0:02:05.7]} 13... Be6 {[%clk 0:02:28.3]} 14.
Rdd1 {[%clk 0:02:03.3]} 14... O-O-O {[%clk 0:02:28.3]} 15. Kb1 {[%clk
0:02:01.1]} 15... Bf7 {[%clk 0:02:24.7]} 16. Nd4 {[%clk 0:02:00.2]} 16... Ne5
{[%clk 0:02:17.3]} 17. Nb5 {[%clk 0:01:42.1]} 17... a6 {[%clk 0:02:15.6]} 18.
Nc3 {[%clk 0:01:42.6]} 18... Bg7 {[%clk 0:02:14]} 19. Nd5 {[%clk 0:01:40]} 19...
c6 {[%clk 0:02:03.8]} 20. Nxe7+ {[%clk 0:01:39.2]} 1-0

[Event "Early-Titled-Tuesday-Blitz-April-16-2024"]
[Site "Chess.com"]
[Date "2024.04.16"]
[Round "7"]
[White "Aygehovit1992"]
[Black "Herzog2012"]
[Result "1-0"]
[WhiteElo "2736"]
[BlackElo "2538"]
[TimeControl "180+1"]
[EndTime "9:17:23 PDT"]
[Termination "Aygehovit1992 won by resignation"]

1. e4 {[%clk 0:03:00.9]} 1... e5 {[%clk 0:02:50.3]} 2. Nf3 {[%clk 0:03:00.4]}
2... Nf6 {[%clk 0:02:50.9]} 3. Nxe5 {[%clk 0:03:00.1]} 3... d6 {[%clk
0:02:50.9]} 4. Nf3 {[%clk 0:03:00.8]} 4... Nxe4 {[%clk 0:02:51.1]} 5. Qe2 {[%clk
0:03:01.5]} 5... Qe7 {[%clk 0:02:49.6]} 6. d3 {[%clk 0:03:02.1]} 6... Nf6 {[%clk
0:02:45.5]} 7. Bg5 {[%clk 0:03:02.7]} 7... Bg4 {[%clk 0:02:34.8]} 8. Bxf6 {[%clk
0:03:01.9]} 8... gxf6 {[%clk 0:02:27]} 9. Nbd2 {[%clk 0:03:01.2]} 9... d5 {[%clk
0:02:24]} 10. Qxe7+ {[%clk 0:03:00.6]} 10... Bxe7 {[%clk 0:02:23.6]} 11. O-O-O
{[%clk 0:03:01]} 11... Nd7 {[%clk 0:02:20.1]} 12. h3 {[%clk 0:03:00.2]} 12...
Bxf3 {[%clk 0:02:18.2]} 13. Nxf3 {[%clk 0:03:01.1]} 13... Bc5 {[%clk 0:02:12.5]}
14. d4 {[%clk 0:03:00.8]} 14... Bd6 {[%clk 0:02:12.2]} 15. Re1+ {[%clk 0:02:59]}
15... Kf8 {[%clk 0:02:11.7]} 16. Bd3 {[%clk 0:02:59.3]} 16... Re8 {[%clk
0:01:58]} 17. g3 {[%clk 0:02:55.5]} 17... h5 {[%clk 0:01:52.8]} 18. Nh4 {[%clk
0:02:55.2]} 18... c5 {[%clk 0:01:43.8]} 19. Bb5 {[%clk 0:02:51.3]} 19... Rd8
{[%clk 0:00:57.6]} 20. Nf5 {[%clk 0:02:50.7]} 20... Bc7 {[%clk 0:00:52]} 21. Re7
{[%clk 0:02:48.1]} 1-0

[Event "Early-Titled-Tuesday-Blitz-April-16-2024"]
[Site "Chess.com"]
[Date "2024.04.16"]
[Round "7"]
[White "KorolDimitriy75"]
[Black "Chesstiger64"]
[Result "1-0"]
[WhiteElo "2318"]
[BlackElo "2369"]
[TimeControl "180+1"]
[EndTime "9:17:26 PDT"]
[Termination "KorolDimitriy75 won by resignation"]

1. d4 {[%clk 0:03:00.9]} 1... d6 {[%clk 0:03:00.3]} 2. c4 {[%clk 0:03:01.5]}
2... e5 {[%clk 0:02:59.9]} 3. Nc3 {[%clk 0:03:01.2]} 3... exd4 {[%clk
0:02:59.4]} 4. Qxd4 {[%clk 0:03:02.1]} 4... Nc6 {[%clk 0:02:59.7]} 5. Qd2 {[%clk
0:03:02.4]} 5... g6 {[%clk 0:03:00.3]} 6. b3 {[%clk 0:03:01]} 6... Bg7 {[%clk
0:03:00.4]} 7. Bb2 {[%clk 0:03:01.2]} 7... Nf6 {[%clk 0:02:59.7]} 8. Nf3 {[%clk
0:03:01.3]} 8... O-O {[%clk 0:03:00.3]} 9. e3 {[%clk 0:03:00.9]} 9... Re8 {[%clk
0:03:00.9]} 10. Be2 {[%clk 0:03:00.5]} 10... Bf5 {[%clk 0:02:59]} 11. O-O {[%clk
0:03:00.1]} 11... Ne4 {[%clk 0:02:59.2]} 12. Nxe4 {[%clk 0:02:59.9]} 12... Bxe4
{[%clk 0:02:55]} 13. Rfd1 {[%clk 0:02:44.7]} 13... Qe7 {[%clk 0:02:54.6]} 14.
Rac1 {[%clk 0:02:42.1]} 14... a5 {[%clk 0:02:53.7]} 15. Nd4 {[%clk 0:02:28.2]}
15... Nxd4 {[%clk 0:02:51.5]} 16. Bxd4 {[%clk 0:02:28.3]} 16... b6 {[%clk
0:02:46.8]} 17. Bf1 {[%clk 0:02:04.1]} 17... Qg5 {[%clk 0:02:41.5]} 18. a3
{[%clk 0:01:47.5]} 18... Be5 {[%clk 0:02:40.5]} 19. f4 {[%clk 0:01:42.8]} 19...
Bxd4 {[%clk 0:02:20.9]} 20. fxg5 {[%clk 0:01:37.5]} 20... Be5 {[%clk 0:02:20.9]}
21. Re1 {[%clk 0:01:26.4]} 21... Kg7 {[%clk 0:02:20.7]} 22. Be2 {[%clk
0:01:20.4]} 22... Rh8 {[%clk 0:02:17.5]} 23. Bf3 {[%clk 0:01:18]} 23... Bxf3
{[%clk 0:02:16.9]} 24. gxf3 {[%clk 0:01:18.9]} 24... h6 {[%clk 0:02:17.2]} 25.
f4 {[%clk 0:01:19.1]} 1-0

[Event "Early-Titled-Tuesday-Blitz-April-16-2024"]
[Site "Chess.com"]
[Date "2024.04.16"]
[Round "7"]
[White "Hercog"]
[Black "PolandHussars"]
[Result "0-1"]
[WhiteElo "2149"]
[BlackElo "2600"]
[TimeControl "180+1"]
[EndTime "9:17:54 PDT"]
[Termination "PolandHussars won by resignation"]

1. d4 {[%clk 0:02:59.9]} 1... Nf6 {[%clk 0:02:57.2]} 2. c4 {[%clk 0:03:00.1]}
2... c5 {[%clk 0:02:56.9]} 3. d5 {[%clk 0:03:00.1]} 3... e6 {[%clk 0:02:55.2]}
4. Nc3 {[%clk 0:03:00]} 4... exd5 {[%clk 0:02:52.4]} 5. cxd5 {[%clk 0:03:00.2]}
5... d6 {[%clk 0:02:52.3]} 6. e4 {[%clk 0:03:00.7]} 6... g6 {[%clk 0:02:50.5]}
7. f4 {[%clk 0:03:01.1]} 7... Bg7 {[%clk 0:02:46.7]} 8. Bb5+ {[%clk 0:03:01.7]}
8... Nfd7 {[%clk 0:02:44.4]} 9. Nf3 {[%clk 0:03:01.8]} 9... a6 {[%clk 0:02:41]}
10. Bd3 {[%clk 0:03:01.8]} 10... b5 {[%clk 0:02:40.6]} 11. a3 {[%clk 0:03:01.9]}
11... c4 {[%clk 0:02:40.6]} 12. Bc2 {[%clk 0:03:01.8]} 12... O-O {[%clk
0:02:40.4]} 13. O-O {[%clk 0:03:01.9]} 13... Nc5 {[%clk 0:02:39.5]} 14. Be3
{[%clk 0:03:01.6]} 14... Qc7 {[%clk 0:02:38.9]} 15. Bd4 {[%clk 0:03:00]} 15...
Bg4 {[%clk 0:02:37.7]} 16. Bxg7 {[%clk 0:02:59.5]} 16... Kxg7 {[%clk 0:02:38.5]}
17. Qd4+ {[%clk 0:02:58.6]} 17... f6 {[%clk 0:02:38.5]} 18. e5 {[%clk
0:02:50.2]} 18... Bxf3 {[%clk 0:02:33.9]} 19. exf6+ {[%clk 0:02:46.8]} 19...
Rxf6 {[%clk 0:02:32.6]} 20. Rxf3 {[%clk 0:02:46.9]} 20... Nbd7 {[%clk
0:02:32.4]} 21. Re1 {[%clk 0:02:44.2]} 21... Rf8 {[%clk 0:02:28.9]} 22. Rfe3
{[%clk 0:02:38]} 22... Kg8 {[%clk 0:02:23.8]} 23. g3 {[%clk 0:02:36.7]} 23...
R6f7 {[%clk 0:02:17.2]} 24. Re6 {[%clk 0:02:03.3]} 24... Nf6 {[%clk 0:02:07.4]}
25. R6e2 {[%clk 0:01:53.8]} 25... Ncd7 {[%clk 0:02:01]} 26. f5 {[%clk
0:01:41.6]} 26... Ne5 {[%clk 0:01:56.3]} 27. fxg6 {[%clk 0:01:41.2]} 27... Nf3+
{[%clk 0:01:56.3]} 28. Kh1 {[%clk 0:01:36.3]} 28... Nxd4 {[%clk 0:01:56.5]} 29.
gxf7+ {[%clk 0:01:35.9]} 29... Qxf7 {[%clk 0:01:54.8]} 0-1